[Event "POL-chT 2nd League Juniors 2020"]
[Site "Sypniewo"]
[Date "2020.10.24"]
[Round "3.17"]
[White "Niemier, Martyna"]
[Black "Seemann, Pola"]
[Result "0-1"]
[ECO "E30"]
[WhiteElo "1235"]
[BlackElo "1566"]
[Annotator "NA RC"]
[PlyCount "148"]
[EventDate "2020.10.23"]
[EventType "team-tourn"]
[EventCountry "POL"]
[SourceTitle "playchess.com"]
[Source "ChessBase"]
[SourceQuality "1"]
[TimeControl "5400+30"]

1. d4 {[%emt 0:00:00]} Nf6 {[%emt 0:00:00]} 2. c4 {[%emt 0:00:00]} e6 {[%emt 0:00:00]} 3. Nc3 {[%emt 0:00:02]} Bb4 {[%emt 0:00:00]} 4. Bg5 {[%emt 0:00:20]} b6 {[%emt 0:00:35]} 5. Nf3 {[%emt 0:00:22]} Bb7 {[%emt 0:00:23]} 6. e3 {[%emt 0:00:20]} O-O {[%emt 0:00:29]} 7. Bd3 {[%emt 0:00:19]} h6 {[%emt 0:00:53]} 8. Bh4 {[%emt 0:00:32]} d6 {[%emt 0:00:49]} 9. O-O {[%emt 0:00:57]} Bxc3 {[%emt 0:00:12]} 10. bxc3 {[%emt 0:00:09]} Nbd7 {[%emt 0:00:15]} 11. Rb1 {[%emt 0:03:24]} Qe8 {[%emt 0:02:21]} 12. Qe2 {[%emt 0:07:22]} Ne4 {[%emt 0:02:44]} 13. Bxe4 {[%emt 0:01:21]} Bxe4 {[%emt 0:00:09]} 14. Rb2 {[%emt 0:01:44]} e5 {[%emt 0:03:27]} 15. Bg3 {[%emt 0:11:18]} a5 {[%emt 0:06:33]} 16. Rb5 {[%emt 0:03:18]} Bc6 {[%emt 0:02:19]} 17. Rb2 {[%emt 0:00:53]} Bb7 {[%emt 0:00:59]} 18. dxe5 {[%emt 0:12:53]} dxe5 {[%emt 0:00:42]} 19. Rd1 {[%emt 0:04:00]} Qe6 {[%emt 0:06:49]} 20. Rbd2 {[%emt 0:02:23]} Bc6 {[%emt 0:05:17]} 21. h3 {[%emt 0:04:58]} Rfe8 {[%emt 0:08:09]} 22. Rxd7 {[%emt 0:15:14]} Bxd7 {[%emt 0:01:28]} 23. Bxe5 {[%emt 0:00:27]} c5 {[%emt 0:02:27]} 24. Rd6 {[%emt 0:03:04]} Qe7 {[%emt 0:02:14]} 25. Bg3 {[%emt 0:04:08]} Rab8 {[%emt 0:05:25]} 26. Qb2 {[%emt 0:08:39]} b5 {[%emt 0:04:17]} 27. cxb5 {[%emt 0:00:11]} Bxb5 {[%emt 0:00:49]} 28. Qa3 {[%emt 0:02:54]} Qa7 {[%emt 0:04:59]} 29. Rd5 {[%emt 0:02:26]} Rbc8 {[%emt 0:01:07]} 30. Qb3 {[%emt 0:07:18]} Bc6 {[%emt 0:01:07]} 31. Rf5 {[%emt 0:01:13]} Bxf3 {[%emt 0:00:43]} 32. Rxf3 {[%emt 0:00:18]} Rcd8 {[%emt 0:00:54]} 33. Bh4 {[%emt 0:01:17]} Rb8 {[%emt 0:00:32]} 34. Qc4 {[%emt 0:00:37]} Re6 {[%emt 0:01:17]} 35. Rf5 {[%emt 0:00:48]} Rc8 {[%emt 0:01:55]} 36. Rf3 {[%emt 0:01:16]} Qb7 {[%emt 0:00:51]} 37. Qf4 {[%emt 0:00:36]} Re4 {[%emt 0:02:06]} 38. Qg3 {[%emt 0:00:41]} Qc7 {[%emt 0:00:29]} 39. Qxc7 {[%emt 0:00:40]} Rxc7 {[%emt 0:00:06]} 40. Bg3 {[%emt 0:00:03]} Rb7 {[%emt 0:00:27]} 41. Rf5 {[%emt 0:00:14]} Rc4 {[%emt 0:00:14]} 42. Bd6 {[%emt 0:00:43]} Rb5 {[%emt 0:00:20]} 43. Re5 {[%emt 0:01:11]} Rxc3 {[%emt 0:00:29]} 44. Re8+ {[%emt 0:00:04]} Kh7 {[%emt 0:00:21]} 45. Re7 {[%emt 0:00:55]} Kg6 {[%emt 0:00:41]} 46. Re5 {[%emt 0:00:34]} Rc2 {[%emt 0:00:53]} 47. f4 {[%emt 0:00:40]} Rxa2 {[%emt 0:01:37]} 48. Bxc5 {[%emt 0:00:03]} Rc2 {[%emt 0:00:21]} 49. Bd4 {[%emt 0:00:31]} Rxe5 {[%emt 0:00:09]} 50. Bxe5 {[%emt 0:00:02]} a4 {[%emt 0:00:09]} 51. g4 {[%emt 0:00:21]} a3 {[%emt 0:00:06]} 52. h4 {[%emt 0:00:16]} a2 {[%emt 0:00:04]} 53. f5+ {[%emt 0:00:06]} Kh7 {[%emt 0:00:05]} 54. g5 {[%emt 0:00:27]} Rc1+ {[%emt 0:00:04]} 55. Kg2 {[%emt 0:00:07]} a1=Q {[%emt 0:00:09]} 56. Bxa1 {[%emt 0:00:01]} Rxa1 {[%emt 0:00:08]} 57. gxh6 {[%emt 0:00:20]} Kxh6 {[%emt 0:00:09]} 58. Kg3 {[%emt 0:00:01]} g6 {[%emt 0:00:34]} 59. Kf4 {[%emt 0:00:56]} gxf5 {[%emt 0:00:15]} 60. Kxf5 {[%emt 0:00:04]} Re1 {[%emt 0:00:27]} 61. e4 {[%emt 0:00:13]} Kh5 {[%emt 0:00:35]} 62. e5 {[%emt 0:00:55]} Kxh4 {[%emt 0:00:08]} 63. Kf6 {[%emt 0:00:05]} Kg4 {[%emt 0:00:05]} 64. Kxf7 {[%emt 0:00:05]} Rxe5 {[%emt 0:00:06]} 65. Kg8 {[%emt 0:00:11]} Re7 {[%emt 0:00:06]} 66. Kf8 {[%emt 0:00:02]} Ra7 {[%emt 0:00:08]} 67. Ke8 {[%emt 0:00:08]} Kf5 {[%emt 0:00:06]} 68. Kd8 {[%emt 0:00:02]} Ke6 {[%emt 0:00:08]} 69. Kc8 {[%emt 0:00:11]} Kd6 {[%emt 0:00:05]} 70. Kb8 {[%emt 0:00:07]} Rg7 {[%emt 0:00:05]} 71. Kc8 {[%emt 0:00:14]} Rh7 {[%emt 0:00:06]} 72. Kb8 {[%emt 0:00:10]} Kc6 {[%emt 0:00:04]} 73. Ka8 {[%emt 0:00:06]} Kb6 {[%emt 0:00:04]} 74. Kb8 {[%emt 0:00:05]} Rh8# 0-1

[Event "POL-chT 2nd League Juniors 2020"]
[Site "Sypniewo"]
[Date "2020.10.24"]
[Round "3.18"]
[White "Gaszka, Zuzanna"]
[Black "Lewicka, Joanna"]
[Result "1-0"]
[ECO "D35"]
[WhiteElo "1417"]
[BlackElo "1243"]
[Annotator "NA RC"]
[PlyCount "105"]
[EventDate "2020.10.23"]
[EventType "team-tourn"]
[EventCountry "POL"]
[SourceTitle "playchess.com"]
[Source "ChessBase"]
[SourceQuality "1"]
[TimeControl "5400+30"]

1. d4 {[%emt 0:00:00]} d5 {[%emt 0:00:00]} 2. c4 {[%emt 0:00:00]} e6 {[%emt 0:00:00]} 3. Nc3 {[%emt 0:00:00]} Nf6 {[%emt 0:00:00]} 4. cxd5 {[%emt 0:00:00]} exd5 {[%emt 0:00:00]} 5. Bg5 {[%emt 0:00:00]} Be7 {[%emt 0:00:01]} 6. e3 {[%emt 0:00:05]} O-O {[%emt 0:00:24]} 7. Bd3 {[%emt 0:00:19]} Nbd7 {[%emt 0:00:31]} 8. Nge2 {[%emt 0:00:31]} c5 {[%emt 0:00:15]} 9. O-O {[%emt 0:01:06]} b6 {[%emt 0:00:18]} 10. f3 {[%emt 0:07:40]} Bb7 {[%emt 0:01:51]} 11. Qd2 {[%emt 0:03:14]} a6 {[%emt 0:04:29]} 12. a4 {[%emt 0:02:14]} c4 {[%emt 0:06:48]} 13. Bc2 {[%emt 0:00:53]} Bb4 {[%emt 0:00:45]} 14. Bf5 {[%emt 0:16:50]} Qc7 {[%emt 0:04:06]} 15. Qc2 {[%emt 0:03:01]} g6 {[%emt 0:01:02]} 16. Bxd7 {[%emt 0:01:27]} Nxd7 {[%emt 0:00:21]} 17. e4 {[%emt 0:05:25]} dxe4 {[%emt 0:05:57]} 18. fxe4 {[%emt 0:01:26]} Rfe8 {[%emt 0:01:24]} 19. Ng3 {[%emt 0:02:01]} Qd6 {[%emt 0:06:53]} 20. Qf2 {[%emt 0:03:36]} f6 {[%emt 0:05:53]} 21. Bf4 {[%emt 0:21:09]} Qf8 {[%emt 0:07:31]} 22. Qe2 {[%emt 0:09:15]} Rac8 {[%emt 0:02:19]} 23. Qg4 {[%emt 0:04:45]} Qg7 {[%emt 0:06:36]} 24. d5 {[%emt 0:03:24]} Bxc3 {[%emt 0:01:58]} 25. bxc3 {[%emt 0:00:13]} Nc5 {[%emt 0:00:20]} 26. Bd6 {[%emt 0:03:00]} Nb3 {[%emt 0:05:38]} 27. Rad1 {[%emt 0:01:59]} b5 {[%emt 0:05:36]} 28. axb5 {[%emt 0:00:22]} axb5 {[%emt 0:00:09]} 29. Qf3 {[%emt 0:00:42]} Nc5 {[%emt 0:07:17]} 30. Bxc5 {[%emt 0:00:38]} Rxc5 {[%emt 0:00:10]} 31. Qxf6 {[%emt 0:00:12]} Qxf6 {[%emt 0:04:24]} 32. Rxf6 {[%emt 0:00:06]} Bc8 {[%emt 0:03:18]} 33. d6 {[%emt 0:01:41]} Bd7 {[%emt 0:00:28]} 34. Rd4 {[%emt 0:01:46]} Rce5 {[%emt 0:00:52]} 35. Rf2 {[%emt 0:01:55]} Kg7 {[%emt 0:05:33]} 36. Rfd2 {[%emt 0:01:15]} Bc6 {[%emt 0:02:04]} 37. Kf2 {[%emt 0:01:34]} Kf7 {[%emt 0:02:26]} 38. Ke3 {[%emt 0:00:44]} Bd7 {[%emt 0:02:59]} 39. Rd5 {[%emt 0:01:29]} Rxd5 {[%emt 0:00:34]} 40. Rxd5 {[%emt 0:00:06]} Ke6 {[%emt 0:00:08]} 41. Ne2 {[%emt 0:00:50]} Bc6 {[%emt 0:01:05]} 42. Nd4+ {[%emt 0:00:26]} Kd7 {[%emt 0:00:12]} 43. Nxc6 {[%emt 0:00:14]} Kxc6 {[%emt 0:00:07]} 44. Kd4 {[%emt 0:00:28]} b4 {[%emt 0:04:23]} 45. cxb4 {[%emt 0:00:28]} c3 {[%emt 0:00:08]} 46. Kxc3 {[%emt 0:01:00]} Rd8 {[%emt 0:02:25]} 47. b5+ {[%emt 0:00:23]} Kd7 {[%emt 0:00:16]} 48. Kd4 {[%emt 0:00:35]} Rb8 {[%emt 0:00:31]} 49. e5 {[%emt 0:00:42]} Re8 {[%emt 0:00:23]} 50. Rc5 {[%emt 0:00:27]} Re6 {[%emt 0:00:41]} 51. Kd5 {[%emt 0:00:14]} Re8 {[%emt 0:00:08]} 52. Rc7+ {[%emt 0:00:15]} Kd8 {[%emt 0:00:02]} 53. e6 {[%emt 0:00:15]} 1-0

[Event "POL-chT 2nd League Juniors 2020"]
[Site "Sypniewo"]
[Date "2020.10.24"]
[Round "3.19"]
[White "Gardian, Adam"]
[Black "Malik, Maciej"]
[Result "0-1"]
[ECO "B09"]
[WhiteElo "1859"]
[BlackElo "1671"]
[Annotator "NA"]
[PlyCount "106"]
[EventDate "2020.10.23"]
[EventType "team-tourn"]
[EventCountry "POL"]
[SourceTitle "playchess.com"]
[Source "ChessBase"]
[SourceQuality "1"]
[TimeControl "5400+30"]

{[%evp 8,93,43,24,44,24,37,32767,9,32767,32767,32767,32767,32767,18,32767,32767,32767,32767,25,41,32767,27,14,32767,0,-11,-3,-13,-12,0,-18,0,0,0,-5,7,-10,0,-159,-147,-163,-158,-156,-159,-162,-162,32767,32767,32767,32767,32767,-160,-176,32767,-170,-164,-178,-176,-178,-176,-195,-168,-183,32767,32767,-210,-221,-219,-255,32767,-252,32767,32767,32767,32767,32767,32767,-289,32767,-387,-370,-432,-393,-521,-472,32767,-597]} 1. e4 {[%emt 0:00:00]} d6 {[%emt 0:00:00]} 2. d4 {[%emt 0:00:00]} Nf6 {[%emt 0:00:39]} 3. Nc3 {[%emt 0:00:00]} g6 {[%emt 0:00:51]} 4. f4 {[%emt 0:01:21]} Bg7 {[%emt 0:00:05]} 5. Nf3 {[%emt 0:00:06]} O-O {[%emt 0:00:57]} 6. Bd3 {[%emt 0:00:21]} Na6 {[%emt 0:00:24]} 7. e5 {[%emt 0:12:45]} Nd7 {[%emt 0:02:56]} 8. e6 {[%emt 0:10:42] B09: Pirc Defence: Austrian Attack.} fxe6 {[%emt 0:00:08]} 9. Qe2 {[%emt 0:02:47]} Nf6 {[%emt 0:02:46]} 10. Ng5 {[%emt 0:01:47] [#]} Qe8 $146 {[%emt 0:04:14]} ({Predecessor:} 10... Nb4 $15 11. Bc4 d5 12. Bb3 Qd7 13. O-O Ne8 14. Nf3 Nc6 15. Be3 Nd6 16. Ne5 Nxe5 17. fxe5 {0-1 (61) Hartnack,R-Lawton,C CServe email 1992}) 11. Nxe6 {[%emt 0:04:42]} Bxe6 {[%emt 0:00:11]} 12. Qxe6+ {[%emt 0:00:06]} Qf7 {[%emt 0:00:09]} 13. Bc4 {[%emt 0:06:55]} Qxe6+ $1 {[%emt 0:01:42]} 14. Bxe6+ {[%emt 0:00:12]} Kh8 {[%emt 0:00:03]} 15. Be3 {[%emt 0:10:03]} c6 {[%emt 0:01:07]} 16. h3 {[%emt 0:15:04]} Nc7 {[%emt 0:04:57]} 17. Bb3 {[%emt 0:00:57]} b5 {[%emt 0:01:39]} 18. a3 {[%emt 0:01:11]} a5 {[%emt 0:01:45]} 19. O-O {[%emt 0:06:39]} b4 {[%emt 0:02:15]} 20. axb4 {[%emt 0:00:41]} axb4 {[%emt 0:00:05]} 21. Ne2 {[%emt 0:00:18]} Nfd5 {[%emt 0:06:14]} 22. Bd2 {[%emt 0:00:50]} Nb5 {[%emt 0:15:08]} 23. c3 $2 {[%emt 0:01:21]} ({White should try} 23. Bxd5 $11 cxd5 24. c3) 23... bxc3 {[%emt 0:00:17]} 24. bxc3 {[%emt 0:10:35]} Rxa1 {[%emt 0:00:18]} 25. Rxa1 {[%emt 0:00:05] [#]} Ndxc3 $1 {[%emt 0:00:19]} 26. Bxc3 {[%emt 0:00:36]} Nxc3 {[%emt 0:00:04]} 27. Nxc3 {[%emt 0:00:55]} Bxd4+ {[%emt 0:00:04]} 28. Kh1 {[%emt 0:00:15]} Bxc3 {[%emt 0:00:05]} 29. Rc1 {[%emt 0:00:03]} Bd2 {[%emt 0:00:17]} 30. Rxc6 {[%emt 0:00:02]} Bxf4 {[%emt 0:00:14]} 31. g4 {[%emt 0:01:07]} Bg5 {[%emt 0:00:34]} 32. Kg2 {[%emt 0:00:34]} Bh4 {[%emt 0:00:06]} 33. Rc2 {[%emt 0:01:07]} Kg7 {[%emt 0:00:22]} 34. Re2 {[%emt 0:00:18]} Rc8 {[%emt 0:01:43]} 35. Rd2 {[%emt 0:01:38]} Rc3 {[%emt 0:00:28]} 36. Bd5 {[%emt 0:00:21]} Re3 {[%emt 0:03:57]} 37. Bc4 {[%emt 0:00:48]} Kf6 {[%emt 0:01:17]} 38. Ba2 {[%emt 0:00:53]} e6 {[%emt 0:00:50]} 39. Bc4 {[%emt 0:00:27]} Ke5 {[%emt 0:00:13]} 40. Bb5 {[%emt 0:00:11]} d5 {[%emt 0:00:45]} 41. Bd3 {[%emt 0:00:26]} Kf4 {[%emt 0:00:45]} 42. Bb5 {[%emt 0:00:16]} Re1 {[%emt 0:02:42]} 43. Ba6 {[%emt 0:00:44]} Ke4 {[%emt 0:03:14]} 44. Bc8 $19 {[%emt 0:00:29]} Ke3 {[%emt 0:05:23]} 45. Ra2 {[%emt 0:00:22]} d4 {[%emt 0:02:06]} 46. Bxe6 {[%emt 0:00:52]} d3 {[%emt 0:01:12]} 47. Ra7 {[%emt 0:04:10]} Re2+ {[%emt 0:01:38]} 48. Kg1 {[%emt 0:02:51]} Bf2+ {[%emt 0:05:08]} 49. Kg2 {[%emt 0:01:43]} Bh4+ 50. Kg1 Kf3 51. Rf7+ Kg3 52. Rf1 d2 53. Bb3 Re1 0-1

[Event "POL-chT 2nd League Juniors 2020"]
[Site "Sypniewo"]
[Date "2020.10.24"]
[Round "3.20"]
[White "Zniszczol, Wiktoria"]
[Black "Kubica, Dominik"]
[Result "0-1"]
[ECO "B18"]
[WhiteElo "1620"]
[BlackElo "1577"]
[Annotator "NA RC"]
[PlyCount "92"]
[EventDate "2020.10.23"]
[EventType "team-tourn"]
[EventCountry "POL"]
[SourceTitle "playchess.com"]
[Source "ChessBase"]
[SourceQuality "1"]
[TimeControl "5400+30"]

1. e4 {[%emt 0:00:00]} c6 {[%emt 0:00:00]} 2. d4 {[%emt 0:00:00]} d5 {[%emt 0:00:00]} 3. Nc3 {[%emt 0:00:00]} dxe4 {[%emt 0:00:00]} 4. Nxe4 {[%emt 0:00:00]} Bf5 {[%emt 0:00:05]} 5. Ng3 {[%emt 0:00:03]} Bg6 {[%emt 0:00:06]} 6. h4 {[%emt 0:00:10]} h6 {[%emt 0:00:15]} 7. h5 {[%emt 0:00:53]} Bh7 {[%emt 0:00:11]} 8. Nf3 {[%emt 0:00:08]} Nd7 {[%emt 0:01:08]} 9. Bd3 {[%emt 0:00:38]} Bxd3 {[%emt 0:00:34]} 10. Qxd3 {[%emt 0:00:10]} Ngf6 {[%emt 0:00:49]} 11. Bd2 {[%emt 0:00:46]} e6 {[%emt 0:00:55]} 12. O-O-O {[%emt 0:00:35]} Bd6 {[%emt 0:01:38]} 13. Ne4 {[%emt 0:00:51]} Nxe4 {[%emt 0:02:04]} 14. Qxe4 {[%emt 0:00:15]} Nf6 {[%emt 0:01:23]} 15. Qe2 {[%emt 0:00:15]} Qc7 {[%emt 0:02:37]} 16. g3 {[%emt 0:00:11]} b5 {[%emt 0:04:32]} 17. Ne5 {[%emt 0:08:54]} Bxe5 {[%emt 0:14:14]} 18. dxe5 {[%emt 0:00:23]} Nd5 {[%emt 0:00:55]} 19. f4 {[%emt 0:01:02]} O-O {[%emt 0:12:35]} 20. g4 {[%emt 0:09:23]} f5 {[%emt 0:08:26]} 21. Rdg1 {[%emt 0:02:55]} Kh7 {[%emt 0:06:19]} 22. g5 {[%emt 0:01:09]} Ne7 {[%emt 0:04:19]} 23. Qf2 {[%emt 0:22:27]} Rg8 {[%emt 0:09:44]} 24. Qh4 {[%emt 0:07:55]} Qd7 {[%emt 0:02:07]} 25. Bb4 {[%emt 0:03:53]} Nd5 {[%emt 0:04:23]} 26. Bc5 {[%emt 0:04:20]} a5 {[%emt 0:04:06]} 27. Rh3 {[%emt 0:14:46]} b4 {[%emt 0:05:00]} 28. Qf2 {[%emt 0:03:24]} a4 {[%emt 0:03:12]} 29. a3 {[%emt 0:00:57]} Qb7 {[%emt 0:04:23]} 30. Rhg3 {[%emt 0:02:34]} bxa3 {[%emt 0:06:04]} 31. Bxa3 {[%emt 0:00:07]} Rab8 {[%emt 0:01:28]} 32. Qg2 {[%emt 0:02:27]} Nxf4 {[%emt 0:01:02]} 33. Qf3 {[%emt 0:00:46]} Nd5 {[%emt 0:01:03]} 34. gxh6 {[%emt 0:11:26]} gxh6 {[%emt 0:00:07]} 35. Rg6 {[%emt 0:01:45]} Rxg6 {[%emt 0:01:06]} 36. Rxg6 {[%emt 0:00:13]} Qf7 {[%emt 0:00:30]} 37. c4 {[%emt 0:01:58]} Rb3 {[%emt 0:00:21]} 38. Qd1 {[%emt 0:00:47]} Nf4 {[%emt 0:00:44]} 39. Rf6 {[%emt 0:00:19]} Qa7 {[%emt 0:00:30]} 40. Kc2 {[%emt 0:00:44]} Rh3 {[%emt 0:00:31]} 41. c5 {[%emt 0:00:29]} Nxh5 {[%emt 0:00:22]} 42. Rxe6 {[%emt 0:00:12]} Qf7 {[%emt 0:00:36]} 43. Qd6 {[%emt 0:00:14]} Ng7 {[%emt 0:00:20]} 44. Re7 {[%emt 0:00:59]} Qc4+ {[%emt 0:00:12]} 45. Kd2 {[%emt 0:00:18]} Rh2+ {[%emt 0:00:17]} 46. Ke1 {[%emt 0:00:39]} Qe2# 0-1

[Event "POL-chT 2nd League Juniors 2020"]
[Site "Sypniewo"]
[Date "2020.10.24"]
[Round "3.21"]
[White "Zaborski, Igor"]
[Black "Karut, Kacper"]
[Result "1-0"]
[ECO "D05"]
[WhiteElo "1612"]
[BlackElo "1657"]
[Annotator "NA RC"]
[PlyCount "77"]
[EventDate "2020.10.23"]
[EventType "team-tourn"]
[EventCountry "POL"]
[SourceTitle "playchess.com"]
[Source "ChessBase"]
[SourceQuality "1"]
[TimeControl "5400+30"]

1. d4 {[%emt 0:00:00]} d5 {[%emt 0:00:00]} 2. Nf3 {[%emt 0:00:00]} e6 {[%emt 0:00:06]} 3. e3 {[%emt 0:00:00]} Nf6 {[%emt 0:00:16]} 4. Bd3 {[%emt 0:00:16]} Bd7 {[%emt 0:01:13]} 5. O-O {[%emt 0:00:47]} c5 {[%emt 0:01:29]} 6. b3 {[%emt 0:01:14]} Nc6 {[%emt 0:03:32]} 7. Bb2 {[%emt 0:01:01]} cxd4 {[%emt 0:01:20]} 8. exd4 {[%emt 0:00:23]} Bd6 {[%emt 0:02:14]} 9. a3 {[%emt 0:00:46]} O-O {[%emt 0:00:50]} 10. Nbd2 {[%emt 0:00:32]} Rc8 {[%emt 0:11:09]} 11. Ne5 {[%emt 0:01:26]} h6 {[%emt 0:10:40]} 12. f4 {[%emt 0:01:48]} Bxe5 {[%emt 0:06:52]} 13. fxe5 {[%emt 0:00:28]} Nh7 {[%emt 0:01:06]} 14. Nf3 {[%emt 0:01:05]} f5 {[%emt 0:02:17]} 15. exf6 {[%emt 0:01:32]} Nxf6 {[%emt 0:04:27]} 16. Ne5 {[%emt 0:01:12]} Nxe5 {[%emt 0:03:30]} 17. dxe5 {[%emt 0:00:23]} Ne4 {[%emt 0:01:19]} 18. Rxf8+ {[%emt 0:01:53]} Kxf8 {[%emt 0:01:48]} 19. Qf3+ {[%emt 0:02:42]} Kg8 {[%emt 0:00:26]} 20. Bxe4 {[%emt 0:02:08]} dxe4 {[%emt 0:00:05]} 21. Qxe4 {[%emt 0:00:30]} Bc6 {[%emt 0:03:33]} 22. Qg4 {[%emt 0:02:12]} Qd5 {[%emt 0:01:35]} 23. c4 {[%emt 0:02:21]} Qd2 {[%emt 0:15:14]} 24. Qxe6+ {[%emt 0:01:06]} Kh7 {[%emt 0:00:07]} 25. Qf5+ {[%emt 0:01:30]} g6 {[%emt 0:00:10]} 26. Qf7+ {[%emt 0:02:04]} Kh8 {[%emt 0:00:18]} 27. Qf2 {[%emt 0:01:19]} Qxf2+ {[%emt 0:00:35]} 28. Kxf2 {[%emt 0:00:07]} Rd8 {[%emt 0:00:02]} 29. Ke3 {[%emt 0:03:42]} Bxg2 {[%emt 0:01:20]} 30. Rg1 {[%emt 0:00:35]} Bc6 {[%emt 0:00:13]} 31. Rxg6 {[%emt 0:00:40]} Kh7 {[%emt 0:00:19]} 32. Rf6 {[%emt 0:01:34]} Rd1 {[%emt 0:01:16]} 33. e6 {[%emt 0:02:17]} Re1+ {[%emt 0:00:58]} 34. Kd2 {[%emt 0:00:54]} Rb1 {[%emt 0:01:23]} 35. Rf7+ {[%emt 0:02:20]} Kg6 {[%emt 0:00:37]} 36. Bd4 {[%emt 0:10:02]} Rxb3 {[%emt 0:01:05]} 37. Rf6+ {[%emt 0:00:35]} Kg5 {[%emt 0:02:27]} 38. e7 {[%emt 0:00:36]} Rxa3 {[%emt 0:06:11]} 39. Rxc6 {[%emt 0:01:02]} 1-0

[Event "POL-chT 2nd League Juniors 2020"]
[Site "Sypniewo"]
[Date "2020.10.24"]
[Round "3.22"]
[White "Pycinski, Wladyslaw"]
[Black "Rozek, Michal"]
[Result "1/2-1/2"]
[ECO "D78"]
[WhiteElo "1149"]
[BlackElo "1442"]
[Annotator "NA"]
[PlyCount "63"]
[EventDate "2020.10.23"]
[EventType "team-tourn"]
[EventCountry "POL"]
[SourceTitle "playchess.com"]
[Source "ChessBase"]
[SourceQuality "1"]
[TimeControl "5400+30"]

1. d4 {[%emt 0:00:00]} Nf6 {[%emt 0:00:00]} 2. Nf3 {[%emt 0:00:31]} d5 {[%emt 0:00:29]} 3. g3 {[%emt 0:00:16]} c6 {[%emt 0:01:44]} 4. Bg2 {[%emt 0:00:42]} g6 {[%emt 0:01:26]} 5. O-O {[%emt 0:00:10]} Bg7 {[%emt 0:00:41]} 6. c4 {[%emt 0:00:34]} O-O {[%emt 0:01:14]} 7. Nbd2 {[%emt 0:00:57]} Bf5 {[%emt 0:05:24]} 8. b3 {[%emt 0:06:25]} Ne4 {[%emt 0:05:02]} 9. Bb2 {[%emt 0:02:07]} Nxd2 {[%emt 0:05:21]} 10. Nxd2 Qd6 {[%emt 0:03:06]} 11. Re1 {[%emt 0:13:20]} Rd8 {[%emt 0:09:17]} 12. cxd5 {[%emt 0:07:53]} cxd5 {[%emt 0:00:30]} 13. Nf1 {[%emt 0:00:09]} Nc6 {[%emt 0:05:42]} 14. Ne3 {[%emt 0:00:24]} Be6 {[%emt 0:00:58]} 15. Qd2 {[%emt 0:03:45]} f5 {[%emt 0:08:59]} 16. f4 {[%emt 0:01:12]} Rac8 {[%emt 0:03:53]} 17. Rac1 {[%emt 0:01:56]} Bf7 {[%emt 0:07:05]} 18. Nc2 {[%emt 0:03:25]} e6 {[%emt 0:02:05]} 19. e3 {[%emt 0:01:06]} h5 {[%emt 0:01:52]} 20. h4 {[%emt 0:00:23]} Be8 {[%emt 0:01:56]} 21. Ba3 {[%emt 0:00:30]} Qd7 {[%emt 0:00:29]} 22. Nb4 {[%emt 0:00:17]} Nxb4 {[%emt 0:00:53]} 23. Qxb4 {[%emt 0:00:41]} Rxc1 {[%emt 0:03:35]} 24. Rxc1 {[%emt 0:00:07]} Rc8 {[%emt 0:01:39]} 25. Qd2 {[%emt 0:00:09]} Rc6 {[%emt 0:02:16]} 26. Rxc6 {[%emt 0:01:55]} Qxc6 {[%emt 0:00:14]} 27. Qc1 {[%emt 0:01:05]} Qxc1+ {[%emt 0:01:51]} 28. Bxc1 {[%emt 0:00:06]} Bf8 {[%emt 0:00:53]} 29. Kf2 {[%emt 0:00:20]} Bb4 {[%emt 0:01:26]} 30. Ke2 {[%emt 0:00:12]} Bb5+ {[%emt 0:00:59]} 31. Kd1 {[%emt 0:00:07]} Kf7 {[%emt 0:00:35]} 32. Bd2 {[%emt 0:00:09]} 1/2-1/2

[Event "POL-chT 2nd League Juniors 2020"]
[Site "Sypniewo"]
[Date "2020.10.24"]
[Round "3.23"]
[White "Hertlein, Irena"]
[Black "Kudlak, Julia"]
[Result "1-0"]
[ECO "A46"]
[WhiteElo "1893"]
[BlackElo "1574"]
[Annotator "NA RC"]
[PlyCount "51"]
[EventDate "2020.10.23"]
[EventType "team-tourn"]
[EventCountry "POL"]
[SourceTitle "playchess.com"]
[Source "ChessBase"]
[SourceQuality "1"]
[TimeControl "5400+30"]

{[%evp 8,49,16,6,29,31,32767,54,32767,54,49,32767,32767,32767,56,52,67,33,91,91,247,259,534,571,550,497,828,696,654,771,32767,32767,32767,32767,1224,32767,1398,32767,32767,32767,32767,1212,32767,1309]} 1. d4 {[%emt 0:00:00]} Nf6 {[%emt 0:00:07]} 2. Nf3 {[%emt 0:00:00]} e6 {[%emt 0:01:03]} 3. g3 {[%emt 0:03:10]} b6 {[%emt 0:01:50]} 4. Bg2 {[%emt 0:00:09]} d5 {[%emt 0:03:56]} 5. O-O {[%emt 0:02:28]} Ba6 {[%emt 0:03:12]} 6. Ne5 {[%emt 0:09:56] A46: 1 d4 Nf6 2 Nf3 e6: Torre, London and Colle Systems.} Nfd7 {[%emt 0:03:56] [#]} 7. c4 $146 {[%emt 0:21:23]} ({Predecessor:} 7. Nd3 c6 8. Nd2 g6 9. e4 Bg7 10. exd5 cxd5 11. c4 Nc6 12. Qa4 Na5 13. Nb4 Bxc4 14. Nxc4 Nxc4 15. Nxd5 {1-0 (29) Dive,R (2297)-Miguel,S (2285) Batumi 2018}) 7... Nxe5 {[%emt 0:05:32]} 8. cxd5 $1 {[%emt 0:00:21]} exd5 {[%emt 0:07:07]} 9. dxe5 {[%emt 0:00:57]} c6 {[%emt 0:03:24]} 10. Nc3 {[%emt 0:01:34]} Nd7 {[%emt 0:03:53]} 11. Qa4 {[%emt 0:23:32]} Bb7 {[%emt 0:01:48]} 12. Rd1 {[%emt 0:00:27]} Nc5 {[%emt 0:04:20] [#]} 13. Qc2 $1 {[%emt 0:02:45]} g6 $2 {[%emt 0:04:24] [#]} (13... Ne6 $16) 14. b4 $1 {[%emt 0:01:47]} Na6 $2 {[%emt 0:02:44]} (14... Nd7 15. e4 Rc8) 15. b5 {[%emt 0:01:58]} Nb4 {[%emt 0:03:43]} 16. Qb2 {[%emt 0:00:10]} d4 {[%emt 0:07:14]} (16... Qe7 $142 17. a3 Bg7 18. axb4 Qxe5 19. bxc6 Bxc6 20. Nxd5 Qxb2 21. Bxb2 Bxb2 22. Nc7+ {[%mdl 64] Double Attack} Kf8 23. Nxa8 Bxa1 24. Rxa1 Bxg2 25. Kxg2 a5 26. Nxb6 axb4) 17. a3 {[%emt 0:05:02]} dxc3 {[%emt 0:04:11]} 18. Rxd8+ {[%emt 0:00:08]} Rxd8 {[%emt 0:00:18]} 19. Qxc3 {[%emt 0:00:11]} Nd5 {[%emt 0:00:47]} 20. Bxd5 {[%emt 0:01:36]} cxd5 {[%emt 0:00:35]} 21. e6 {[%emt 0:00:25]} d4 {[%emt 0:04:40]} 22. Qc7 {[%emt 0:02:02]} fxe6 {[%emt 0:01:03]} 23. Qxb7 {[%emt 0:00:55]} Be7 {[%emt 0:02:46]} 24. Qxa7 {[%emt 0:00:32]} e5 {[%emt 0:00:42]} 25. Qxb6 $18 {[%emt 0:00:28]} Kf7 {[%emt 0:00:50]} 26. Qc7 {[%emt 0:00:45]} 1-0